bitfinex/quotes_SOLUSD_20250728
["timestamp","ask_amount","ask_price","bid_price","bid_amount"]
[1753724274814,44.78316239,186.26,186.25,0.06]
[1753724275009,55.41258957,186.26,186.25,0.06]
[1753724275518,44.78316239,186.26,186.25,0.06]
[1753724275709,43.79883925,186.26,186.25,10.68942718]
[1753724275903,44.51883925,186.26,186.25,0.06]
[1753724276139,44.80316239,186.26,186.25,0.06]
[1753724277187,55.43258957,186.26,186.25,0.06]
[1753724277308,44.80316239,186.26,186.25,0.06]
[1753724277821,44.08316239,186.26,186.25,0.06]
[1753724278322,43.79883925,186.26,186.25,0.06]
[1753724278731,43.79883925,186.26,186.25,10.68942718]
[1753724278732,43.77883925,186.26,186.25,10.68942718]
[1753724278935,38.41,186.26,186.25,10.68942718]
[1753724279135,43.77883925,186.26,186.25,10.68942718]
[1753724280312,0.03,186.26,186.25,10.68942718]
[1753724280514,0.03,186.26,186.25,10.74942718]
[1753724280715,0.03,186.26,186.25,10.68942718]
[1753724281137,5.39883925,186.26,186.25,0.06]
[1753724281343,6.11883925,186.26,186.25,0.06]
[1753724281537,6.40316239,186.26,186.25,0.06]
[1753724282047,38.41,186.26,186.25,10.68942718]
[1753724282635,0.03,186.26,186.25,10.74942718]
[1753724282840,0.03,186.26,186.25,16.11855469]
[1753724283225,0.03,186.26,186.25,22.63585469]
[1753724283859,0.03,186.26,186.25,23.17276744]
[1753724284057,38.38,186.29,186.26,16.78468397]
[1753724284370,44.09660336,186.34,186.26,16.78468397]
[1753724284371,38.38,186.31,186.28,10.62942718]
[1753724284542,38.38,186.31,186.3,10.62942718]
[1753724285753,0.03,186.34,186.31,16.78468397]
[1753724285956,0.03,186.34,186.33,10.62942718]
[1753724286530,0.03,186.34,186.33,10.68942718]
[1753724286733,0.03,186.34,186.33,10.62942718]
[1753724291357,0.03,186.34,186.33,15.99624948]
[1753724291663,0.03,186.34,186.33,33.31967666]
[1753724292057,0.03,186.34,186.33,27.95285436]
[1753724292361,0.03,186.34,186.33,17.26342718]
[1753724292731,0.03,186.34,186.33,6.634]
[1753724292929,0.03,186.34,186.33,13.17239152]
[1753724293131,0.03,186.34,186.33,13.23239152]
[1753724293358,0.03,186.34,186.33,13.17239152]
[1753724294130,0.75,186.34,186.33,6.53839152]
[1753724295061,0.03,186.34,186.33,6.53839152]
[1753724296137,0.75,186.34,186.33,6.53839152]
[1753724298237,6.11653429,186.34,186.33,6.53839152]
[1753724299695,0.03,186.34,186.33,6.53839152]
[1753724300562,0.75,186.34,186.33,6.53839152]
[1753724300735,0.03,186.34,186.33,6.53839152]
[1753724302330,0.75,186.34,186.33,6.53839152]
[1753724303473,6.11653429,186.34,186.32,6.53839152]
[1753724303672,5.39653429,186.34,186.32,6.53839152]
[1753724303869,0.72,186.33,186.32,6.53839152]
[1753724304576,0.03,186.34,186.32,6.53839152]
[1753724304770,0.03,186.34,186.33,6.53839152]
[1753724308656,0.75,186.34,186.33,6.53839152]
[1753724312189,6.11653429,186.34,186.33,6.53839152]
[1753724312477,0.75,186.34,186.33,6.53839152]
[1753724313072,6.11653429,186.34,186.33,6.53839152]
[1753724315570,0.03,186.34,186.33,6.53839152]
[1753724315956,0.03,186.34,186.33,6.59839152]
[1753724316158,0.03,186.34,186.33,6.53839152]
[1753724316363,0.74,186.34,186.33,6.53839152]
[1753724316564,6.10653429,186.34,186.33,6.53839152]
[1753724316791,6.10653429,186.34,186.28,6.1267]
[1753724316974,0.71,186.33,186.28,26.0]
[1753724317175,0.71,186.33,186.25,6.97704637]
[1753724317176,0.28432314,186.31,186.26,0.06]
[1753724317383,38.34,186.3,186.26,6.59839152]
[1753724317588,5.36797466,186.29,186.27,6.53839152]
[1753724317768,5.36765512,186.31,186.28,6.53839152]
[1753724317969,38.34,186.3,186.26,0.06]
[1753724318189,38.34,186.3,186.29,6.53839152]
[1753724318590,39.05,186.3,186.29,6.53839152]
[1753724318782,39.05,186.3,186.28,6.53839152]
[1753724319279,0.71,186.29,186.28,6.53839152]
[1753724319608,6.07797466,186.29,186.28,6.53839152]
[1753724319795,6.07797466,186.29,186.27,6.53839152]
[1753724320091,0.71,186.28,186.27,6.53839152]
[1753724320671,0.71,186.28,186.26,6.59839152]
[1753724320875,39.05,186.27,186.26,6.59839152]
[1753724321068,39.05,186.27,186.26,0.06]
[1753724321591,44.41855102,186.27,186.26,0.06]
[1753724322284,38.34,186.27,186.26,6.59839152]
[1753724322796,6.07798929,186.29,186.26,6.59839152]
[1753724323092,38.34,186.28,186.26,0.06]
[1753724323303,38.34,186.28,186.27,6.53839152]
[1753724324472,43.70826283,186.28,186.27,6.53839152]
[1753724324992,43.70826283,186.28,186.26,0.06]
[1753724324993,44.41826283,186.28,186.26,0.06]
[1753724325188,43.70826283,186.28,186.27,6.53839152]
[1753724325593,43.70826283,186.28,186.26,0.06]
[1753724325791,0.28432314,186.27,186.26,0.06]
[1753724325996,0.99432314,186.27,186.26,0.06]
[1753724326310,20.44027908,186.27,186.26,0.06]
[1753724327097,20.44027908,186.27,186.26,1e-08]
[1753724327485,13.90188756,186.27,186.26,1e-08]
[1753724328195,20.44027908,186.27,186.26,1e-08]
[1753724328587,13.90188756,186.27,186.26,1e-08]
[1753724329175,10.33135209,186.27,186.26,1e-08]
[1753724329500,6.36287416,186.27,186.26,1e-08]
[1753724330101,43.70855102,186.27,186.26,6.53839153]
[1753724330412,44.41855102,186.27,186.26,1e-08]
[1753724331107,51.24126568,186.27,186.26,1e-08]
[1753724331276,55.20383729,186.27,186.26,1e-08]
[1753724331979,55.20316271,186.27,186.26,1e-08]
[1753724332180,55.20318707,186.27,186.26,1e-08]
[1753724332389,44.70287416,186.27,186.26,1e-08]
[1753724332578,55.20147822,186.27,186.26,1e-08]
[1753724332904,5.36855102,186.27,186.26,6.53839153]
[1753724333211,43.70855102,186.27,186.26,6.53839153]
[1753724333406,38.34,186.27,186.26,6.53839153]
[1753724334280,43.70855102,186.27,186.26,6.53839153]
[1753724335284,44.41855102,186.27,186.26,6.53839153]
[1753724335483,43.70855102,186.27,186.26,6.53839153]
[1753724336807,44.41855102,186.27,186.26,1e-08]
[1753724336981,44.70287416,186.27,186.26,1e-08]
[1753724337181,51.24126568,186.27,186.26,1e-08]
[1753724337491,72.17963858,186.27,186.22,0.06]
[1753724337685,0.28432314,186.25,186.22,0.06]
[1753724338001,0.28432314,186.23,186.22,0.06]
[1753724338202,0.99432314,186.23,186.22,0.06]
[1753724338578,5.36970412,186.23,186.22,6.59839152]
[1753724339085,43.70951089,186.24,186.22,6.59839152]
[1753724339304,16.81468397,186.31,186.22,6.59839152]
[1753724339305,5.36918174,186.25,186.23,6.53839152]
[1753724339474,38.32,186.24,186.22,0.06]
[1753724339680,38.32,186.24,186.23,6.53839152]
[1753724340703,43.6894158,186.24,186.23,6.53839152]
[1753724341981,44.3494158,186.24,186.22,6.59839152]
[1753724342180,0.66,186.23,186.22,0.06]
[1753724342715,6.02970412,186.23,186.22,0.06]
[1753724342904,6.31402726,186.23,186.22,0.06]
[1753724346208,12.85241878,186.23,186.22,0.06]
[1753724346792,6.31402726,186.23,186.22,0.06]
[1753724347917,6.31402726,186.23,186.22,1e-08]
[1753724347918,29.63710275,186.23,186.22,1e-08]
[1753724348316,0.28432314,186.18,186.14,6.59839152]
[1753724348613,0.28432314,186.18,186.15,6.53839152]
[1753724348614,38.98,186.17,186.15,6.53839152]
[1753724349199,0.94432314,186.16,186.14,0.06]
[1753724349397,43.69201181,186.15,186.14,6.59839152]
[1753724349799,38.32,186.15,186.14,6.59839152]
[1753724351119,5.37065115,186.2,186.14,6.65839152]
[1753724351308,38.32,186.19,186.18,6.53839152]
[1753724351616,43.69085772,186.19,186.18,6.53839152]
[1753724351813,43.69085772,186.19,186.14,0.12]
[1753724352118,5.37065873,186.2,186.18,6.53839152]
[1753724352325,5.37065873,186.2,186.14,0.06]
[1753724352326,39.0,186.19,186.16,6.53839152]
[1753724352540,0.66,186.18,186.16,6.53839152]
[1753724352822,6.03065873,186.2,186.17,6.53839152]
[1753724353226,38.32,186.19,186.17,6.53839152]
[1753724353414,6.31546934,186.18,186.15,6.53839152]
[1753724353608,39.0,186.17,186.15,6.53839152]
[1753724354017,0.94432314,186.16,186.14,0.06]
[1753724354215,45.14271466,186.15,186.14,0.06]
[1753724354424,45.80271466,186.15,186.14,0.06]
[1753724354724,39.26432314,186.15,186.14,0.06]
[1753724355519,38.32,186.15,186.14,6.59839152]
[1753724356923,44.63633495,186.15,186.14,0.06]
[1753724358901,51.17472647,186.15,186.14,0.06]
[1753724359529,55.12781371,186.15,186.14,0.06]
[1753724359703,48.58942219,186.15,186.14,0.06]
[1753724360206,55.12781371,186.15,186.14,0.06]
[1753724360599,71.91249768,186.15,186.14,1e-08]
[1753724360928,75.46751061,186.15,186.14,1e-08]
[1753724361318,0.28432314,186.14,186.12,2.03130306]
[1753724361634,43.21741038,186.13,186.12,2.03130306]
[1753724361816,48.58999943,186.13,186.12,2.03130306]
[1753724362010,47.92999943,186.13,186.12,2.03130306]
[1753724362224,44.63691219,186.13,186.12,2.03130306]
[1753724362412,48.59069082,186.13,186.12,2.03130306]
[1753724362825,48.58992051,186.13,186.12,2.03130306]
[1753724363028,44.63691219,186.13,186.12,2.03130306]
[1753724364802,6.53839152,186.18,186.12,8.56969458]
[1753724365010,3.95257214,186.17,186.14,6.53839152]
[1753724365222,0.14216157,186.15,186.14,6.53839152]
[1753724365426,0.28432314,186.15,186.14,6.53839152]
[1753724365935,5.36979066,186.23,186.15,7.6576]
[1753724366112,3.98407283,186.22,186.21,6.53839152]
[1753724366313,42.32407283,186.22,186.21,6.53839152]
[1753724367113,47.97838845,186.22,186.18,26.0]
[1753724367337,47.97838845,186.22,186.2,6.53839152]
[1753724367338,3.95407283,186.21,186.2,6.53839152]
[1753724368002,9.32435369,186.21,186.2,6.53839152]
[1753724368200,3.95407283,186.21,186.2,6.53839152]
[1753724368401,42.27407283,186.21,186.2,6.53839152]
[1753724369720,42.27407283,186.21,186.18,26.0]
[1753724370040,9.32785371,186.2,186.19,6.53839152]
[1753724371448,3.95728443,186.2,186.19,6.53839152]
[1753724371931,38.32,186.2,186.19,6.53839152]
[1753724372106,42.27728443,186.2,186.19,6.53839152]
[1753724373429,3.95728443,186.2,186.19,6.59839152]
[1753724373753,0.03,186.22,186.19,11.96924924]
[1753724374045,3.99031447,186.22,186.21,13.07678304]
[1753724374215,0.03,186.22,186.21,6.53839152]
[1753724374629,0.03,186.22,186.21,6.59839152]
[1753724375134,5.39861795,186.27,186.24,26.0]
[1753724375135,38.32,186.26,186.24,26.0]
[1753724375343,38.32,186.26,186.25,6.53839152]
[1753724375720,0.03,186.27,186.25,6.53839152]
[1753724376015,0.03,186.31,186.29,26.0]
[1753724376230,0.03,186.31,186.3,13.07678304]
[1753724376439,0.03,186.31,186.3,13.13678304]
[1753724376612,0.03,186.31,186.3,13.07678304]
[1753724377238,0.03,186.31,186.3,18.50446956]
[1753724378641,0.03,186.31,186.3,13.13678304]
[1753724378822,0.03,186.31,186.3,13.07678304]
[1753724379541,0.03,186.31,186.3,18.50446956]
[1753724380444,0.03,186.34,186.3,18.50446956]
[1753724380445,0.03,186.34,186.31,16.78468397]
[1753724380619,0.03,186.34,186.33,6.53839152]
[1753724381520,0.72,186.34,186.33,6.53839152]
[1753724381717,0.72,186.34,186.28,0.53682628]
[1753724381913,0.72,186.34,186.33,6.53839152]
[1753724382640,0.03,186.34,186.33,6.53839152]
[1753724384924,0.72,186.34,186.33,6.53839152]
[1753724385613,0.03,186.34,186.33,6.53839152]
[1753724386774,0.72,186.34,186.33,6.53839152]
[1753724387472,0.72,186.34,186.3,6.53839152]
[1753724387661,0.03,186.34,186.33,6.53839152]
[1753724387973,0.03,186.34,186.3,6.53839152]
[1753724388166,0.03,186.34,186.29,26.0]
[1753724388357,0.69,186.33,186.29,6.53839152]
[1753724388559,0.28432314,186.32,186.28,6.53839152]
[1753724388772,38.97,186.31,186.28,6.53839152]
[1753724389077,0.69,186.3,186.28,6.53839152]
[1753724389274,0.69,186.3,186.29,6.53839152]
[1753724389795,38.28,186.31,186.29,6.53839152]
[1753724389976,38.28,186.31,186.3,6.53839152]
[1753724391875,38.97,186.31,186.3,6.53839152]
[1753724392069,38.28,186.31,186.3,6.53839152]
[1753724392976,0.03,186.34,186.31,16.78468397]
[1753724393169,0.03,186.34,186.33,6.53839152]
[1753724393965,0.03,186.34,186.33,11.90521382]
[1753724394162,0.03,186.34,186.33,11.96521382]
[1753724395178,0.03,186.34,186.33,11.90521382]
[1753724395355,0.03,186.34,186.33,28.68989779]
[1753724395563,0.03,186.35,186.33,61.37709779]
[1753724395778,0.03,186.35,186.34,6.53839152]
[1753724397679,0.03,186.35,186.34,12.44157923]
[1753724397883,0.03,186.35,186.34,12.50157923]
[1753724398103,0.03,186.35,186.34,29.2862632]
[1753724398387,0.03,186.35,186.34,30.8623632]
[1753724398570,0.03,186.38,186.35,16.78468397]
[1753724398763,0.03,186.38,186.37,6.53839152]
[1753724399988,0.03,186.4,186.39,16.78468397]
[1753724400154,0.03,186.4,186.39,30.39797647]
[1753724400358,0.03,186.45,186.43,32.308]
[1753724400579,0.03,186.45,186.43,38.84639152]
[1753724400762,0.03,186.45,186.43,55.63107549]
[1753724400965,0.2,186.5,186.47,42.78468397]
[1753724401184,0.2,186.5,186.48,16.78468397]
[1753724401492,0.2,186.5,186.49,6.53839152]
[1753724402092,0.92,186.5,186.49,6.53839152]
[1753724402778,0.92,186.5,186.49,10.63962476]
[1753724403188,0.2,186.5,186.49,27.42430873]
[1753724403356,0.2,186.5,186.49,27.96053051]
[1753724403760,0.2,186.5,186.49,33.32274832]
[1753724404375,0.2,186.5,186.49,27.96053051]
[1753724404766,0.2,186.5,186.49,11.17584654]
[1753724405092,0.92,186.5,186.49,10.63962476]
[1753724405462,6.28193029,186.5,186.49,10.63962476]
[1753724405665,44.52193029,186.5,186.49,10.63962476]
[1753724405884,44.52193029,186.5,186.48,10.63962476]
[1753724406088,0.72,186.49,186.47,10.63962476]
[1753724406388,11.35962476,186.49,186.39,12.18350699]
[1753724406563,3.93415497,186.48,186.44,10.63962476]
[1753724406761,5.56193029,186.5,186.47,10.63962476]
[1753724406762,0.2,186.5,186.47,10.63962476]
[1753724406960,0.2,186.5,186.45,11.17596157]
[1753724406961,0.2,186.5,186.49,10.63962476]
[1753724407195,0.2,186.5,186.49,27.42430873]
[1753724407362,0.03,186.52,186.49,32.78651333]
[1753724407563,0.03,186.52,186.51,10.63962476]
[1753724407996,3.96461653,186.52,186.51,10.63962476]
[1753724409181,8.62005166,186.52,186.51,10.63962476]
[1753724409393,13.98140701,186.52,186.51,10.63962476]
[1753724409778,13.98204029,186.52,186.51,10.63962476]
[1753724410684,13.98204029,186.52,186.49,10.63962476]
[1753724410883,8.59068494,186.51,186.49,10.63962476]
[1753724411098,8.59068494,186.5,186.49,10.63962476]
[1753724411405,13.95261523,186.5,186.49,10.63962476]
[1753724411604,13.95261523,186.5,186.47,10.63962476]
[1753724411806,46.99068494,186.49,186.46,10.63962476]
[1753724411984,7.87068494,186.48,186.46,10.63962476]
[1753724412189,8.59068494,186.47,186.44,10.63962476]
[1753724412405,4.65524981,186.46,186.44,10.63962476]
[1753724412710,47.01374516,186.45,186.44,10.63962476]
[1753724413493,52.37711335,186.45,186.44,10.63962476]
[1753724413806,52.37711335,186.45,186.42,10.63962476]
[1753724414024,8.59881615,186.44,186.41,10.63962476]
[1753724414195,8.60109114,186.43,186.41,10.63962476]
[1753724414400,4.65849535,186.42,186.41,10.63962476]
[1753724414913,3.93849535,186.42,186.41,10.63962476]
[1753724415799,3.93849535,186.44,186.41,10.63962476]
[1753724416000,3.93849535,186.43,186.39,5.36502701]
[1753724416210,0.72,186.49,186.42,36.63962476]
[1753724416415,46.32051994,186.48,186.42,26.06]
[1753724416588,7.90051994,186.47,186.42,26.0]
[1753724416932,8.62038349,186.46,186.42,26.0]
[1753724417209,8.62300748,186.45,186.42,26.0]
[1753724417509,46.32311257,186.44,186.42,26.0]
[1753724417690,3.95025997,186.43,186.38,5.36533715]
[1753724417880,3.95025997,186.43,186.41,26.0]
[1753724418085,4.67025997,186.43,186.41,26.0]
[1753724418299,0.72,186.43,186.41,26.0]
[1753724418493,0.72,186.43,186.38,26.0]
[1753724418688,43.78372582,186.44,186.35,38.4]
[1753724418689,7.91084626,186.42,186.41,10.63962476]
[1753724419297,8.63084626,186.42,186.41,10.63962476]
[1753724419485,7.91084626,186.42,186.41,10.63962476]
[1753724419905,3.95542313,186.42,186.41,10.63962476]
[1753724420521,3.96078655,186.42,186.41,10.63962476]
[1753724420827,9.81704168,186.5,186.41,10.63962476]
[1753724420987,0.72,186.47,186.45,10.63962476]
[1753724421192,7.92248398,186.46,186.45,10.63962476]
[1753724421418,8.64248398,186.46,186.45,10.63962476]
[1753724421728,8.64248398,186.46,186.37,30.19845671]
[1753724421729,0.28432314,186.45,186.37,0.06]
[1753724421889,0.28432314,186.45,186.38,10.63962476]
[1753724421890,57.70210874,186.44,186.38,10.63962476]
[1753724422086,10.63962476,186.42,186.37,10.69962476]
[1753724422327,8.64248398,186.41,186.38,10.63962476]
[1753724422616,47.08248398,186.4,186.38,10.63962476]
[1753724422920,0.72,186.39,186.38,10.63962476]
[1753724423216,38.44,186.4,186.38,10.63962476]
[1753724423393,38.44,186.4,186.39,10.63962476]
[1753724423598,47.08270812,186.4,186.39,10.63962476]
[1753724423803,52.44751498,186.4,186.37,10.69962476]
[1753724424026,8.64270812,186.39,186.37,10.69962476]
[1753724424213,0.72,186.39,186.38,10.63962476]
[1753724425234,8.65042314,186.39,186.38,10.63962476]
[1753724425414,0.72,186.39,186.37,0.06]
[1753724425618,10.05087285,186.38,186.37,0.06]
[1753724425823,14.30049779,186.38,186.37,0.06]
[1753724426814,14.30007052,186.38,186.37,0.06]
[1753724427835,14.01574738,186.38,186.37,0.06]
[1753724428546,14.01557663,186.38,186.37,0.06]
[1753724428722,13.29557663,186.38,186.37,0.06]
[1753724428922,14.01557663,186.38,186.37,0.06]
[1753724429237,6.08538255,186.38,186.37,0.06]
[1753724430216,39.16,186.4,186.37,10.69962476]
[1753724430438,0.72,186.39,186.37,0.06]
[1753724430812,0.72,186.38,186.37,0.06]
[1753724432348,6.36970569,186.38,186.37,0.06]
[1753724432940,6.08538255,186.38,186.37,10.69962476]
[1753724433120,0.72,186.38,186.37,10.69962476]
[1753724433639,0.72,186.38,186.37,0.06]
[1753724433841,0.72,186.38,186.37,10.69962476]
[1753724434146,5.36517059,186.39,186.37,10.69962476]
[1753724434447,39.15,186.4,186.38,10.63962476]
[1753724434448,38.44,186.4,186.38,10.63962476]
[1753724434651,44.51496757,186.4,186.38,10.63962476]
[1753724434820,0.71,186.39,186.38,10.63962476]
[1753724435016,0.99432314,186.39,186.37,0.06]
[1753724435344,0.71,186.38,186.37,0.06]
[1753724435542,43.80496757,186.4,186.37,10.69962476]
[1753724435751,43.80496757,186.4,186.38,10.63962476]
[1753724435927,38.44,186.4,186.38,10.63962476]
[1753724436128,38.44,186.4,186.39,10.63962476]
[1753724437626,0.03,186.48,186.39,22.11431945]
[1753724437828,0.71,186.47,186.44,10.63962476]
[1753724438025,39.07,186.46,186.45,10.63962476]
[1753724438228,38.36,186.46,186.45,10.63962476]
[1753724439941,39.07,186.46,186.45,10.63962476]
[1753724441235,44.43308055,186.46,186.4,26.0]
[1753724441454,0.71,186.45,186.44,10.63962476]
[1753724442431,43.72308055,186.46,186.44,10.63962476]
[1753724442432,38.36,186.46,186.44,10.63962476]
[1753724442635,44.43321454,186.46,186.45,10.63962476]
[1753724443426,38.36,186.46,186.45,10.63962476]
[1753724443629,44.43318737,186.46,186.45,10.63962476]
[1753724444258,44.43318737,186.46,186.4,26.0]
[1753724444457,0.71,186.45,186.42,10.63962476]
[1753724444762,0.71,186.44,186.4,10.63962476]
[1753724444930,0.28432314,186.42,186.37,0.06]
[1753724445130,0.71,186.41,186.37,10.69962476]
[1753724445339,5.36509469,186.39,186.37,10.69962476]
[1753724445666,0.71,186.38,186.37,10.69962476]
[1753724446642,0.71,186.38,186.37,0.06]
[1753724447151,0.71,186.38,186.37,6.60056536]
[1753724447365,43.7048945,186.4,186.37,6.60056536]
[1753724447562,43.7048945,186.4,186.39,6.54056536]
[1753724448147,44.4148945,186.4,186.39,6.54056536]
[1753724448442,44.4148945,186.4,186.38,6.54056536]
[1753724448652,0.71,186.39,186.37,6.60056536]
[1753724448846,0.71,186.38,186.37,0.06]
[1753724449360,6.07538255,186.38,186.37,0.06]
[1753724449743,6.35970569,186.38,186.37,0.06]
[1753724450337,20.99639096,186.38,186.37,0.06]
[1753724450557,24.57829063,186.38,186.37,0.06]
[1753724450963,20.59915399,186.38,186.37,0.06]
[1753724451135,17.01725432,186.38,186.37,0.06]
[1753724451533,20.598057,186.38,186.37,1e-08]
[1753724451752,41.36069795,186.38,186.37,1e-08]
[1753724451938,27.72655574,186.37,186.36,1e-08]
[1753724452260,32.01665239,186.37,186.36,1e-08]
[1753724452449,61.99415937,186.37,186.36,1e-08]
[1753724453752,67.35982981,186.37,186.36,1e-08]
[1753724454643,67.36003443,186.37,186.36,1e-08]
[1753724455466,63.38232283,186.37,186.36,1e-08]
[1753724455846,67.36092852,186.37,186.36,1e-08]
[1753724456547,67.36166726,186.37,186.36,1e-08]
[1753724456868,63.38232283,186.37,186.36,1e-08]
[1753724458442,101.68232283,186.37,186.36,1e-08]
[1753724459473,105.66165339,186.37,186.36,1e-08]
[1753724461358,105.65905103,186.37,186.36,1e-08]
[1753724463560,105.65905103,186.37,186.31,0.06]
[1753724463561,17.06900711,186.33,186.31,1e-08]
[1753724463764,0.28432314,186.28,186.23,0.06]
[1753724464085,49.26187177,186.28,186.23,0.06]
[1753724464290,49.96187177,186.28,186.23,0.06]
[1753724464456,55.3301346,186.28,186.23,0.06]
[1753724465277,55.3301346,186.28,186.23,10.71754863]
[1753724466157,55.3301346,186.28,186.23,0.06]
[1753724466486,0.28432314,186.26,186.23,0.06]
[1753724466668,0.28432314,186.24,186.23,0.06]
[1753724468477,5.65373894,186.24,186.23,0.06]
[1753724469058,6.35373894,186.24,186.23,0.06]
[1753724469385,12.90419352,186.24,186.23,0.06]
[1753724469686,12.90419352,186.24,186.22,0.1]
[1753724469687,17.06900711,186.23,186.22,0.1]
[1753724469864,62.61946169,186.23,186.22,0.1]
[1753724470373,43.95402726,186.23,186.22,0.1]
[1753724471004,5.51186569,186.23,186.22,6.65045458]
[1753724471168,43.81186569,186.23,186.22,6.65045458]
[1753724471697,43.95402726,186.23,186.22,6.65045458]
[1753724472471,38.3,186.23,186.22,6.71045458]
[1753724473066,38.3,186.23,186.22,6.65045458]
[1753724473788,43.95402726,186.23,186.22,6.65045458]
[1753724474890,38.3,186.23,186.22,6.65045458]
[1753724475089,38.3,186.23,186.22,6.71045458]
[1753724475962,38.3,186.23,186.22,6.65045458]
[1753724476364,43.66970412,186.23,186.22,6.65045458]
[1753724476887,43.95402726,186.23,186.22,0.1]
[1753724477095,44.65402726,186.23,186.22,0.1]
[1753724477471,51.20448184,186.23,186.22,0.1]
[1753724478301,17.06900711,186.22,186.18,0.1]
[1753724478506,6.69261615,186.19,186.18,0.1]
[1753724478804,17.06900711,186.15,186.14,0.06]
[1753724478999,38.58432314,186.15,186.14,0.06]
[1753724479166,39.28432314,186.15,186.14,0.06]
[1753724479807,38.58432314,186.15,186.14,0.06]
[1753724480178,44.65633495,186.15,186.14,0.06]
[1753724481108,43.97633495,186.15,186.14,0.06]
[1753724481286,44.67633495,186.15,186.14,0.06]
[1753724482773,43.99633495,186.15,186.14,0.06]
[1753724483305,2.80342462,186.22,186.14,10.74669214]
[1753724483306,0.14216157,186.19,186.14,10.74669214]
[1753724483603,6.07056928,186.2,186.17,10.68669214]
[1753724483604,38.32,186.18,186.17,10.68669214]
[1753724483810,39.02,186.18,186.14,0.06]
[1753724484005,0.28432314,186.16,186.14,0.06]
[1753724484194,44.41201181,186.15,186.14,0.06]
[1753724484376,55.38302709,186.15,186.14,0.06]
[1753724485417,72.16771106,186.15,186.14,1e-08]
[1753724486788,55.38302709,186.15,186.14,1e-08]
[1753724486983,44.69633495,186.15,186.14,1e-08]
[1753724487502,43.71201181,186.15,186.14,10.68669215]
[1753724487717,43.71201181,186.15,186.14,1e-08]
[1753724488080,44.69633495,186.15,186.14,1e-08]
[1753724489393,75.71425605,186.15,186.14,1e-08]
[1753724490015,48.24287994,186.15,186.14,1e-08]
[1753724490882,75.71425605,186.15,186.14,1e-08]
[1753724491092,101.71425605,186.15,186.14,1e-08]
[1753724491918,17.06900711,186.14,186.1,2.04602035]
[1753724492202,17.06900711,186.14,186.06,1.94086372]
[1753724492203,16.78468397,186.08,186.07,1e-08]
[1753724492435,16.78468397,186.08,186.06,1e-08]
[1753724492436,0.28432314,186.07,186.06,1e-08]
[1753724492590,21.30513884,186.07,186.06,1e-08]
[1753724492780,3.83045487,186.07,186.06,1e-08]
[1753724492977,38.64432314,186.07,186.06,1e-08]
[1753724493302,0.28432314,186.07,186.06,1e-08]
[1753724493500,44.03864463,186.07,186.06,1e-08]
[1753724493701,48.66857266,186.07,186.06,1e-08]
[1753724493888,52.60787258,186.07,186.06,1e-08]
[1753724494084,59.3552648,186.07,186.06,1e-08]
[1753724494399,59.3552648,186.07,186.05,2.0661149]
[1753724494400,83.62199285,186.07,186.05,1e-08]
[1753724494701,49.08298739,186.06,186.05,1e-08]
[1753724494888,53.75569925,186.04,186.03,1e-08]
[1753724495088,96.0732808,186.04,186.03,1e-08]
[1753724495278,17.06900711,186.03,186.01,1e-08]
[1753724495484,39.16888709,186.02,186.01,1e-08]
[1753724495812,109.61465313,186.02,186.01,1e-08]
[1753724496106,71.23465313,186.02,186.01,1e-08]
[1753724496278,109.67465313,186.02,186.01,1e-08]
[1753724496485,17.06900711,186.01,186.0,24.97021452]
[1753724496688,36.31674626,186.01,186.0,24.97021452]
[1753724496984,8.15506514,186.01,186.0,24.97021452]
[1753724497477,42.66190469,186.01,186.0,24.97021452]
[1753724497683,48.03795974,186.01,186.0,24.97021452]
[1753724499127,9.59795974,186.01,186.0,24.97021452]
[1753724499310,3.93758155,186.01,186.0,35.65690666]
[1753724499515,42.37758155,186.01,186.0,36.33690666]
[1753724500310,42.37030109,186.01,186.0,36.33690666]
[1753724501328,5.51711787,186.05,186.0,36.33690666]
[1753724501628,42.34845699,186.04,186.03,10.68669214]